Cogmind - Beta 17 @@@ ROGUE MODE // 2026.07.10 @ 17:59:50 // Winter2022/Polymind Player: OBLIQUE Result: Destroyed by S-27 Virus with Autogun Performance ------------- Evolutions (6) 3000 Regions Visited (14) 2800 Robots Destroyed (3) 15 Value Destroyed (71) 71 Prototype IDs (23) 460 Alien Tech Used (0) 0 Bonus (8000) 8000 TOTAL SCORE: 14136 Bonus ------- Polymind Skill 4723 Pacifist 2081 Follower Combat Kills 196 Entered Garrisons 200 Entered DSFs 500 Aligned with FarCom 300 Cogmind --------- Core Integrity 0/1150 Matter 92/100 Energy 109/110 System Corruption 3% Temperature Cool (2) Movement Flying (32) Location -4/Upper Caves Parts ------- > --- POWER (1) -------- Light Nuclear Core > --- PROPULSION (2) --- VTOL Module VTOL Module > --- UTILITY (0) ------ (None) > --- WEAPON (1) ------- Autogun > --- INVENTORY (0) ---- (None) Peak State ------------ > --- POWER ------------ Light Deuterium Engine > --- PROPULSION ------- Improved Hover Unit Improved Hover Unit > --- UTILITY ---------- Hacking Suite System Shield System Restoration Module > --- WEAPON ----------- Improved Datajack > --- INVENTORY -------- (None) [Rating: 20] Favorites ----------- Power Light Ion Engine Engine Light Ion Engine Power Core Light Nuclear Core Propulsion Wheel Leg Carbon-fiber Leg Wheel Wheel Hover Unit Hover Unit Flight Unit VTOL Module Utility Hacking Suite Device Advanced Heat Sink Storage Small Matter Pod Processor Visual Processing Unit Hackware Hacking Suite Weapon Datajack Energy Gun Heavy Laser Ballistic Gun Autogun Special Weapon Mining Laser Special Melee Weapon Datajack Build | -11 -10 -9 -9 -9 -8 -8 -7 -6 -6 -6 -6 -5 -4 -4 ------- Run | Yrd Mat Mat Min Exi Min Mat Fac Fac Gar Fac DSF Fac Fac Upp Slots Evolved . | . . . . . . . . . . . . . . . Power . | . . . . . . . . . . . . . . . Propulsion . | . . . . . . . . . . . . . . . Utility . | . . . . . . . . . . . . . . . Weapon . | . . . . . . . . . . . . . . . Parts Attached . | . . . . . . . . . . . . . . . Power . | . . . . . . . . . . . . . . . Engine . | . . . . . . . . . . . . . . . Core . | . . . . . . . . . . . . . . . Reactor . | . . . . . . . . . . . . . . . Propulsion . | . . . . . . . . . . . . . . . Treads . | . . . . . . . . . . . . . . . Leg . | . . . . . . . . . . . . . . . Wheel . | . . . . . . . . . . . . . . . Hover . | . . . . . . . . . . . . . . . Flight . | . . . . . . . . . . . . . . . Utility . | . . . . . . . . . . . . . . . Device . | . . . . . . . . . . . . . . . Storage . | . . . . . . . . . . . . . . . Processor . | . . . . . . . . . . . . . . . Hackware . | . . . . . . . . . . . . . . . Protection . | . . . . . . . . . . . . . . . Artifact . | . . . . . . . . . . . . . . . Weapon . | . . . . . . . . . . . . . . . Energy Gun . | . . . . . . . . . . . . . . . Energy Cannon . | . . . . . . . . . . . . . . . Ballistic Gun . | . . . . . . . . . . . . . . . Ballistic Cannon . | . . . . . . . . . . . . . . . Launcher . | . . . . . . . . . . . . . . . Special Weapon . | . . . . . . . . . . . . . . . Impact Weapon . | . . . . . . . . . . . . . . . Slashing Weapon . | . . . . . . . . . . . . . . . Piercing Weapon . | . . . . . . . . . . . . . . . Special Melee Weapon . | . . . . . . . . . . . . . . . Unidentified Prototypes . | . . . . . . . . . . . . . . . Parts Lost 13 | . . . . . . 1 . . . . . 6 6 . Power 3 | . . . . . . . . . . . . 1 2 . Propulsion 8 | . . . . . . 1 . . . . . 4 3 . Utility . | . . . . . . . . . . . . . . . Weapon 2 | . . . . . . . . . . . . 1 1 . Highest Loss Streak 4 | . . . . . . 1 . . . . . 4 3 . To Critical Strikes . | . . . . . . . . . . . . . . . Average Backups . | . . . . . . . . . . . . . . . Power . | . . . . . . . . . . . . . . . Propulsion . | . . . . . . . . . . . . . . . Utility . | . . . . . . . . . . . . . . . Weapon . | . . . . . . . . . . . . . . . Tool/Special . | . . . . . . . . . . . . . . . Unused Backups . | . . . . . . . . . . . . . . . Power . | . . . . . . . . . . . . . . . Propulsion . | . . . . . . . . . . . . . . . Utility . | . . . . . . . . . . . . . . . Weapon . | . . . . . . . . . . . . . . . Tool/Special . | . . . . . . . . . . . . . . . Average Slot Usage (%) 76 | . 100 100 84 . 57 82 85 81 100 100 100 69 67 90 Engine 14 | . 18 25 21 . 14 20 21 19 23 8 14 12 13 . Core 1 | . . . . . . . . . 1 10 . . . 21 Leg 2 | . . . . . . . . . . . . 12 . . Wheel 9 | . 24 . . . 28 34 29 25 . . . 5 7 . Hover 16 | . 13 50 42 . . . . 15 46 16 28 7 19 . Flight 4 | . . . . . . 6 13 . 3 20 . . . 43 Device 3 | . 24 . . . . . . 1 . 8 14 11 . . Storage 4 | . . . . . 14 17 14 11 . . . 2 4 . Processor 4 | . 6 25 21 . . . . 7 23 . . . . . Hackware 5 | . . . . . . . . . . 16 28 7 11 2 Energy Gun 1 | . . . . . . . . . . . . 5 . . Ballistic Gun 2 | . . . . . . 3 6 . 1 10 . . . 21 Special Melee Weapon 3 | . . . . . . . . . . 8 14 3 10 . Peak Build Rating 20 | 8 8 5 5 . 4 4 4 12 9 20 20 20 7 9 Average Rating 7 | 4 7 5 4 . 3 3 3 5 8 15 20 12 4 8 On Entrance 6 | . 8 5 5 . . 4 4 4 9 9 20 20 . 3 Avg Prop Armor Cover (%) 23 | . . . . . . . . . . . . . 23 . Naked Turns 344 | . . . 20 108 2 2 1 11 1 . . 114 85 . Heaviest Build 26 | 6 6 3 3 . 4 4 4 26 8 8 7 14 4 8 Greatest Support 64 | 20 20 12 12 3 20 20 20 64 14 14 14 30 20 8 Greatest Overweight (x) . | . . . . . . . . . . . . . . . Average Overweight (x) . | . . . . . . . . . . . . . . . Largest Inventory Capacity 6 | . . . . . 1 1 1 6 . 1 1 1 1 1 Average Capacity . | . . . . . . . . . . . 1 . . . Most Carried . | . . . . . . . . . . . . . . . Average Carried . | . . . . . . . . . . . . . . . Final Capacity 1 | . . . . . 1 . 1 . . 1 1 . 1 . Final Carried . | . . . . . . . . . . . . . . . Class Distribution -------------------- 23% | Operator 21% | Worker 19% | Watcher 14% | Cogmind 9% | Swarmer 8% | Grunt Dominant Class ---------------- Tunneler | -10/Materials Watcher | -9/Materials Watcher | -9/Mines Cogmind | -9/Exiles Worker | -8/Mines Worker | -8/Materials Worker | -7/Factory Worker | -6/Factory Watcher | -6/Garrison Operator | -6/Factory Operator | -6/DSF Grunt | -5/Factory Operator | -4/Factory Swarmer | -4/Upper Caves Resources | -11 -10 -9 -9 -9 -8 -8 -7 -6 -6 -6 -6 -5 -4 -4 ----------- Run | Yrd Mat Mat Min Exi Min Mat Fac Fac Gar Fac DSF Fac Fac Upp Matter Collected 43 | . . . . . . . . . . . . . 35 8 Remotely . | . . . . . . . . . . . . . . . Salvage Created 122 | . . . . . . . . . . . . 105 . 17 Parts 2 | . . . . . . . . . . . . 2 . . Haulers Intercepted . | . . . . . . . . . . . . . . . Recyclers Shooed . | . . . . . . . . . . . . . . . Parts Field Recycled . | . . . . . . . . . . . . . . . Retrieved Matter . | . . . . . . . . . . . . . . . Parts Self-Destructed . | . . . . . . . . . . . . . . . Prevented . | . . . . . . . . . . . . . . . Parts Restored . | . . . . . . . . . . . . . . . Kills | -11 -10 -9 -9 -9 -8 -8 -7 -6 -6 -6 -6 -5 -4 -4 ------- Run | Yrd Mat Mat Min Exi Min Mat Fac Fac Gar Fac DSF Fac Fac Upp Combat Hostiles Destroyed 1 | . . . . . . . . . . . . 1 . . Classes Destroyed 3 | . . . . . . . . . . . . 2 . 1 Builder 1 | . . . . . . . . . . . . 1 . . Operator 1 | . . . . . . . . . . . . . . 1 Grunt 1 | . . . . . . . . . . . . 1 . . Best Kill Streak 1 | . . . . . . . . . . . . 1 . 1 Combat Bots Only 1 | . . . . . . . . . . . . 1 . . Max Kills in Single Turn 1 | . . . . . . . . . . . . 1 . 1 Gunslinging . | . . . . . . . . . . . . . . . Exploded . | . . . . . . . . . . . . . . . Melee . | . . . . . . . . . . . . . . . Uniques/NPCs Destroyed . | . . . . . . . . . . . . . . . Combat | -11 -10 -9 -9 -9 -8 -8 -7 -6 -6 -6 -6 -5 -4 -4 -------- Run | Yrd Mat Mat Min Exi Min Mat Fac Fac Gar Fac DSF Fac Fac Upp Hostile Shots Fired 274 | . . . . . . 38 1 4 36 . . 74 107 14 Missed 121 | . . . . . . 21 . 2 24 . . 23 43 8 Hits 153 | . . . . . . 17 1 2 12 . . 51 64 6 Melee 1 | . . . . . . . . . . . . . 1 . Projectile 152 | . . . . . . 17 1 2 12 . . 51 63 6 AOE 1 | . . . . . . . . . . . . . 1 . Critical Strikes 5 | . . . . . . . . 1 1 . . 1 2 . Damage Taken 3384 | . . . . . . 184 6 59 198 . . 1476 1351 110 Core 2373 | . . . . . . 91 6 59 91 . . 976 1091 59 Absorbed by Shields . | . . . . . . . . . . . . . . . Core Remaining (%) 80 | 100 100 . . . 100 83 99 . . . 82 2 . . Volleys Fired 21 | . . . . . . 1 . . . . . 18 . 2 Largest 1 | . . . . . . 1 . . . . . 1 . 1 Hottest 69 | . . . . . . 20 . . . . . 69 . 23 Shots Fired 21 | . . . . . . 1 . . . . . 18 . 2 Gun 21 | . . . . . . 1 . . . . . 18 . 2 Cannon . | . . . . . . . . . . . . . . . Launcher . | . . . . . . . . . . . . . . . Special . | . . . . . . . . . . . . . . . Kinetic 3 | . . . . . . 1 . . . . . . . 2 Thermal 18 | . . . . . . . . . . . . 18 . . Explosive . | . . . . . . . . . . . . . . . Electromagnetic . | . . . . . . . . . . . . . . . Robot Hit Streak 5 | . . . . . . 1 . . . . . 3 . 5 Robot Miss Streak 3 | . . . . . . . . . . . . 3 . . Penetration Max . | . . . . . . . . . . . . . . . Secondary Targets . | . . . . . . . . . . . . . . . Shots Hit Robots 15 | . . . . . . 1 . . . . 1 11 . 2 Core Hits 9 | . . . . . . . . . . . . 7 . 2 Critical Kills . | . . . . . . . . . . . . . . . Critical Parts Destroyed . | . . . . . . . . . . . . . . . Critical Strikes 1 | . . . . . . . . . . . . 1 . . Burn 1 | . . . . . . . . . . . . 1 . . Melee Attacks 1 | . . . . . . . . . . . 1 . . . Impact . | . . . . . . . . . . . . . . . Slashing . | . . . . . . . . . . . . . . . Piercing . | . . . . . . . . . . . . . . . Sneak Attacks 1 | . . . . . . . . . . . 1 . . . Combat Hostiles . | . . . . . . . . . . . . . . . Follow-up Attacks . | . . . . . . . . . . . . . . . Damage Inflicted 292 | . . . . . . 13 . . . . . 242 7 30 Guns 271 | . . . . . . 10 . . . . . 231 . 30 Cannons . | . . . . . . . . . . . . . . . Explosions . | . . . . . . . . . . . . . . . Melee . | . . . . . . . . . . . . . . . Ramming 21 | . . . . . . 3 . . . . . 11 7 . Kinetic 40 | . . . . . . 10 . . . . . . . 30 Thermal 231 | . . . . . . . . . . . . 231 . . Explosive . | . . . . . . . . . . . . . . . Electromagnetic . | . . . . . . . . . . . . . . . Impact . | . . . . . . . . . . . . . . . Slashing . | . . . . . . . . . . . . . . . Piercing . | . . . . . . . . . . . . . . . Highest Corruption 3 | . . . . . . . . . . . . 3 3 3 Average Corruption 2 | . . . . . . . . . . . . 1 2 3 Corruption Purged . | . . . . . . . . . . . . . . . Corruption Blocked . | . . . . . . . . . . . . . . . Effects 3 | . . . . . . . . . . . . 1 . 2 Message Errors 1 | . . . . . . . . . . . . . . 1 Energy Discharges 2 | . . . . . . . . . . . . 1 . 1 Overload Shots . | . . . . . . . . . . . . . . . Overflow Damage . | . . . . . . . . . . . . . . . Projectiles . | . . . . . . . . . . . . . . . Explosions . | . . . . . . . . . . . . . . . Melee . | . . . . . . . . . . . . . . . Knockbacks . | . . . . . . . . . . . . . . . Impact . | . . . . . . . . . . . . . . . Kinetic . | . . . . . . . . . . . . . . . Secondary . | . . . . . . . . . . . . . . . Self-Inflicted Damage 9 | . . . . . . 1 . . . . . 5 3 . Shots . | . . . . . . . . . . . . . . . Rammed 4 | . . . . . . 1 . . . . . 2 1 . Targets Rammed 4 | . . . . . . 1 . . . . . 2 1 . Kicked . | . . . . . . . . . . . . . . . Crushed . | . . . . . . . . . . . . . . . Highest Temperature 297 | . . . . . . 13 . 297 20 . . 25 25 10 Average Temperature 50 | . . . . . . 5 . 267 6 . . 10 13 7 Received Heat Transfer 718 | . . . . . . 27 . 322 96 . . 216 48 9 Siege Activations . | . . . . . . . . . . . . . . . Martial Activations . | . . . . . . . . . . . . . . . Shielding Activations . | . . . . . . . . . . . . . . . Robots Disrupted . | . . . . . . . . . . . . . . . Combat Hostiles . | . . . . . . . . . . . . . . . Robots Corrupted . | . . . . . . . . . . . . . . . Combat Hostiles . | . . . . . . . . . . . . . . . Parts Fried . | . . . . . . . . . . . . . . . Impact Corruptions . | . . . . . . . . . . . . . . . Robots Melted 1 | . . . . . . . . . . . . 1 . . Combat Hostiles 1 | . . . . . . . . . . . . 1 . . Parts Melted . | . . . . . . . . . . . . . . . Heat Transferred 481 | . . . . . . . . . . . . 481 . . Parts Sabotaged . | . . . . . . . . . . . . . . . Parts Stolen . | . . . . . . . . . . . . . . . Parts Stripped . | . . . . . . . . . . . . . . . Power Chain Reactions . | . . . . . . . . . . . . . . . Alert | -11 -10 -9 -9 -9 -8 -8 -7 -6 -6 -6 -6 -5 -4 -4 ------- Run | Yrd Mat Mat Min Exi Min Mat Fac Fac Gar Fac DSF Fac Fac Upp Maximum Alert Level . | . . . . . . . . . . . . . . . Low Security (%) 100 | 100 100 100 100 . 100 100 100 100 100 100 100 100 100 . Level 1 . | . . . . . . . . . . . . . . . Level 2 . | . . . . . . . . . . . . . . . Level 3 . | . . . . . . . . . . . . . . . Level 4 . | . . . . . . . . . . . . . . . Level 5 . | . . . . . . . . . . . . . . . High Security . | . . . . . . . . . . . . . . . Max Security . | . . . . . . . . . . . . . . . Peak Influence 152 | . 15 23 32 . . 15 . . 152 79 47 68 105 . Initial 79 | . . 5 4 . . . . . 2 79 47 24 14 . Average 18 | . 3 5 9 . . 2 . . 25 73 47 18 26 . Influence Increases 738 | . 24 23 54 . . 33 . 4 172 . . 176 247 5 Destroy 0b10 Robot/C 140 | . . . 40 . . . . . 80 . . 20 . . Destroy 0b10 Robot/NC 10 | . . . . . . . . . . . . 5 . 5 Destroy Leader 20 | . . . 10 . . . . . 10 . . . . . Allied During Kill 11 | . . . 4 . . . . . 7 . . . . . Successful Hack 92 | . 9 8 . . . 18 . 4 . . . 31 22 . Partial Spotted 60 | . 15 15 . . . . . . 15 . . . 15 . Lose Combat Pursuer 405 | . . . . . . 15 . . 60 . . 120 210 . Influence Decreases 738 | . 9 25 65 2 . 33 . . 24 84 21 193 218 64 Entered New Map 179 | . . 10 9 2 . . . . 2 73 21 23 16 23 Time Decay 454 | . 9 15 44 . . 23 . . . 10 . 144 171 38 Lost Part 60 | . . . . . . 10 . . . . . 20 30 . Lost Ally 34 | . . . 12 . . . . . 22 . . . . . Miscellaneous 11 | . . . . . . . . . . 1 . 6 1 3 Squads Dispatched 8 | . 1 . . . . 1 . . . . . 2 4 . Investigation 3 | . 1 . . . . 1 . . . . . 1 . . Extermination 3 | . . . . . . . . . . . . 1 2 . Reinforcement 2 | . . . . . . . . . . . . . 2 . Assault . | . . . . . . . . . . . . . . . Garrison . | . . . . . . . . . . . . . . . Intercept . | . . . . . . . . . . . . . . . Searches Triggered . | . . . . . . . . . . . . . . . Construction Impeded . | . . . . . . . . . . . . . . . Haulers Reinforced . | . . . . . . . . . . . . . . . Active Scanning Responses . | . . . . . . . . . . . . . . . Cargo Convoy Interrupts . | . . . . . . . . . . . . . . . Stealth | -11 -10 -9 -9 -9 -8 -8 -7 -6 -6 -6 -6 -5 -4 -4 --------- Run | Yrd Mat Mat Min Exi Min Mat Fac Fac Gar Fac DSF Fac Fac Upp Distress Signals 4 | . . . . . . 1 . . 1 . . 1 1 . Communications Jammed . | . . . . . . . . . . . . . . . Distress Signals . | . . . . . . . . . . . . . . . Times Spotted 117 | . . 2 1 . . 17 1 7 21 . . 24 36 8 Peak Tracking Total 13 | . . 2 1 . . 10 1 5 13 . . 8 10 7 Tactical Retreats 12 | . . . . . . 1 . . 2 . . 5 4 . Traps | -11 -10 -9 -9 -9 -8 -8 -7 -6 -6 -6 -6 -5 -4 -4 ------- Run | Yrd Mat Mat Min Exi Min Mat Fac Fac Gar Fac DSF Fac Fac Upp Traps Triggered 2 | . . . . . . . . . . . . 1 1 . Indirectly . | . . . . . . . . . . . . . . . Trap Hack Attempts 10 | . . . . . . . . . . . 8 . 2 . Triggered 1 | . . . . . . . . . . . 1 . . . Disarmed . | . . . . . . . . . . . . . . . Reprogrammed 3 | . . . . . . . . . . . 2 . 1 . Reused . | . . . . . . . . . . . . . . . Traps Extracted . | . . . . . . . . . . . . . . . Installed . | . . . . . . . . . . . . . . . Triggered . | . . . . . . . . . . . . . . . Machines | -11 -10 -9 -9 -9 -8 -8 -7 -6 -6 -6 -6 -5 -4 -4 ---------- Run | Yrd Mat Mat Min Exi Min Mat Fac Fac Gar Fac DSF Fac Fac Upp Machines Disabled . | . . . . . . . . . . . . . . . Max in Single Turn . | . . . . . . . . . . . . . . . Machines Repaired . | . . . . . . . . . . . . . . . Machines Dismantled . | . . . . . . . . . . . . . . . Machines Sabotaged . | . . . . . . . . . . . . . . . Overloaded Fab Kills . | . . . . . . . . . . . . . . . Hacking | -11 -10 -9 -9 -9 -8 -8 -7 -6 -6 -6 -6 -5 -4 -4 --------- Run | Yrd Mat Mat Min Exi Min Mat Fac Fac Gar Fac DSF Fac Fac Upp Machines Accessed 27 | . 3 1 . 1 . 5 . 2 . 1 . 7 7 . Terminals 22 | . 3 1 . . . 5 . . . 1 . 6 6 . Fabricators . | . . . . . . . . . . . . . . . Repair Stations 1 | . . . . . . . . . . . . 1 . . Recycling Units . | . . . . . . . . . . . . . . . Scanalyzers 1 | . . . . . . . . 1 . . . . . . Garrison Access 2 | . . . . . . . . 1 . . . . 1 . Total Hacks 71 | . 10 2 . 1 . 17 . 3 . 1 . 15 22 . Successful 35 | . 5 1 . 1 . 4 . 3 . 1 . 7 13 . Failed 36 | . 5 1 . . . 13 . . . . . 8 9 . Catastrophic 9 | . . . . . . 3 . . . . . 4 2 . Database Lockouts . | . . . . . . . . . . . . . . . Manual 42 | . 7 2 . 1 . 14 . . . . . 8 10 . Terminals 64 | . 10 2 . . . 17 . . . 1 . 14 20 . Fabricators . | . . . . . . . . . . . . . . . Repair Stations 1 | . . . . . . . . . . . . 1 . . Recycling Units . | . . . . . . . . . . . . . . . Scanalyzers 2 | . . . . . . . . 2 . . . . . . Garrison Access 3 | . . . . . . . . 1 . . . . 2 . Terminal Hacks 22 | . 3 1 . 1 . 1 . . . 1 . 5 10 . Record 1 | . . . . . . . . . . . . . 1 . Open DSF 2 | . . . . . . . . . . 1 . . 1 . Branch Access Points 5 | . 1 1 . . . 1 . . . . . 1 1 . Emergency Access Points 3 | . . . . . . . . . . . . 2 1 . Terminal Index 3 | . 1 . . . . . . . . . . 1 1 . Alert Level 1 | . . . . . . . . . . . . . 1 . Transport Status 1 | . . . . . . . . . . . . . 1 . Zone Layout 5 | . 1 . . . . . . . . . . 1 3 . Proto ID Catalog 1 | . . . . 1 . . . . . . . . . . Fabricator Hacks . | . . . . . . . . . . . . . . . Repair Station Hacks 1 | . . . . . . . . . . . . 1 . . Refit 1 | . . . . . . . . . . . . 1 . . Recycling Unit Hacks . | . . . . . . . . . . . . . . . Scanalyzer 2 | . . . . . . . . 2 . . . . . . Retrieve Study 2 | . . . . . . . . 2 . . . . . . Garrison Access Hacks 1 | . . . . . . . . 1 . . . . . . Unlock Access 1 | . . . . . . . . 1 . . . . . . Unauthorized Hacks 9 | . 2 . . . . 3 . . . . . 1 3 . Terminals 9 | . 2 . . . . 3 . . . . . 1 3 . Assimilate 1 | . . . . . . 1 . . . . . . . . Botnet 7 | . 1 . . . . 2 . . . . . 1 3 . Operators 1 | . 1 . . . . . . . . . . . . . Fabricators . | . . . . . . . . . . . . . . . Repair Stations . | . . . . . . . . . . . . . . . Recycling Units . | . . . . . . . . . . . . . . . Scanalyzers . | . . . . . . . . . . . . . . . Garrison Access . | . . . . . . . . . . . . . . . Data Cores Recovered . | . . . . . . . . . . . . . . . Used . | . . . . . . . . . . . . . . . Hacking Detections 24 | . 3 1 . . . 5 . 2 . . . 6 7 . Full Trace Events 5 | . 1 . . . . 3 . . . . . 1 . . Feedback Events . | . . . . . . . . . . . . . . . Feedback Blocked . | . . . . . . . . . . . . . . . Robot Schematics Acquired . | . . . . . . . . . . . . . . . Robots Built . | . . . . . . . . . . . . . . . Authchips . | . . . . . . . . . . . . . . . Time . | . . . . . . . . . . . . . . . Total Robot Build Rating . | . . . . . . . . . . . . . . . Part Schematics Acquired . | . . . . . . . . . . . . . . . Parts Built . | . . . . . . . . . . . . . . . Authchips . | . . . . . . . . . . . . . . . Time . | . . . . . . . . . . . . . . . Total Part Build Rating . | . . . . . . . . . . . . . . . Part Studies Acquired 2 | . . . . . . . . 2 . . . . . . Parts Repaired . | . . . . . . . . . . . . . . . Time . | . . . . . . . . . . . . . . . Parts Recycled . | . . . . . . . . . . . . . . . Recycled Matter . | . . . . . . . . . . . . . . . Retrieved Matter . | . . . . . . . . . . . . . . . Retrieved Components . | . . . . . . . . . . . . . . . Parts Scanalyzed . | . . . . . . . . . . . . . . . Part Schematics Acquired . | . . . . . . . . . . . . . . . Parts Damaged . | . . . . . . . . . . . . . . . Bothacking | -11 -10 -9 -9 -9 -8 -8 -7 -6 -6 -6 -6 -5 -4 -4 ------------ Run | Yrd Mat Mat Min Exi Min Mat Fac Fac Gar Fac DSF Fac Fac Upp Used RIF Installer . | . . . . . . . . . . . . . . . Robots Hacked 16 | . 1 . . . . 1 2 3 1 1 . 4 2 1 Non-combat 11 | . 1 . . . . . 1 3 . 1 . 3 2 . Combat 5 | . . . . . . 1 1 . 1 . . 1 . 1 Robot Hacks Applied 22 | . 2 . . . . 2 3 4 1 1 . 6 2 1 find_chute 3 | . . . . . . . 1 . . . . 1 1 . map_walls 1 | . . . . . . . . 1 . . . . . . find_recycling 1 | . . . . . . . . 1 . . . . . . find_terminals 3 | . . . . . . . . . . 1 . 1 1 . map_route 3 | . 1 . . . . . . 1 . . . 1 . . mark_security 3 | . 1 . . . . . . 1 . . . 1 . . find_shortcuts 5 | . . . . . . 1 1 . 1 . . 1 . 1 find_garrison 3 | . . . . . . 1 1 . . . . 1 . . Relay Couplers Released . | . . . . . . . . . . . . . . . Fabnet Peak Effective % . | . . . . . . . . . . . . . . . Robots Rewired 6 | . . . . . . . . . 6 . . . . . Allies Hacked . | . . . . . . . . . . . . . . . Hacks Repelled . | . . . . . . . . . . . . . . . Allies | -11 -10 -9 -9 -9 -8 -8 -7 -6 -6 -6 -6 -5 -4 -4 -------- Run | Yrd Mat Mat Min Exi Min Mat Fac Fac Gar Fac DSF Fac Fac Upp Total Allies 8 | . . . 2 . . . . . 6 . . . . . Largest Group 6 | . . . 2 1 . . . . 6 . . . . . Highest-Rated Group 138 | . . . 49 31 . . . . 138 . . . . . Highest-Rated Ally 32 | . . . 31 31 . . . . 32 . . . . . Total Orders . | . . . . . . . . . . . . . . . Ally Attacks 38 | . . . 18 . . . . . 20 . . . . . Total Damage 572 | . . . 236 . . . . . 336 . . . . . Kills 6 | . . . 2 . . . . . 4 . . . . . Allies Corrupted . | . . . . . . . . . . . . . . . Allies Melted . | . . . . . . . . . . . . . . . Intel | -11 -10 -9 -9 -9 -8 -8 -7 -6 -6 -6 -6 -5 -4 -4 ------- Run | Yrd Mat Mat Min Exi Min Mat Fac Fac Gar Fac DSF Fac Fac Upp Active Infowar (turns) 527 | 8 97 46 100 . . . . 41 235 . . . . . Optics 444 | . 28 46 100 . . . . 35 235 . . . . . Terrain 83 | 8 69 . . . . . . 6 . . . . . . Structural 6 | . . . . . . . . 6 . . . . . . Seismic 77 | 8 69 . . . . . . . . . . . . . Robot Analysis Total 11 | 1 1 . . . 1 1 . 3 1 1 . 1 1 . Derelict Logs Recovered . | . . . . . . . . . . . . . . . Drone Launches . | . . . . . . . . . . . . . . . Drone Recoveries . | . . . . . . . . . . . . . . . Exploration | -11 -10 -9 -9 -9 -8 -8 -7 -6 -6 -6 -6 -5 -4 -4 ------------- Run | Yrd Mat Mat Min Exi Min Mat Fac Fac Gar Fac DSF Fac Fac Upp Turns Passed 2324 | 16 97 46 120 108 60 140 96 116 255 35 43 474 570 148 Spaces Moved 3146 | 27 137 83 144 215 75 199 148 173 271 80 36 605 746 207 Core 830 | 16 . . 18 215 2 4 2 18 1 . . 246 293 15 Treads . | . . . . . . . . . . . . . . . Legs 110 | . . . . . . . . . . . . 110 . . Wheels 684 | 11 86 . . . 73 146 96 91 . . . 58 123 . Hover 1131 | . 51 83 126 . . . . 64 211 39 36 191 330 . Flight 391 | . . . . . . 49 50 . 59 41 . . . 192 Fastest Speed 32 | 50 56 56 50 50 50 37 37 50 32 32 56 50 50 32 Average Speed 58 | 62 71 56 55 50 79 68 65 66 50 43 56 66 56 33 Slowest Speed 120 | 80 80 56 56 50 80 80 80 100 56 56 56 120 70 50 Overloaded Moves . | . . . . . . . . . . . . . . . Propulsion Burnouts . | . . . . . . . . . . . . . . . Robots Hopped 2 | . . . . . . . . . . . . . . 2 Potential Cave-ins . | . . . . . . . . . . . . . . . Cave-ins Triggered . | . . . . . . . . . . . . . . . Exploration Rate (%) 22 | 3 29 22 24 43 19 34 5 9 30 4 47 17 28 21 Regions Visited 14 Branch Regions 4 Pre-discovered Areas . | . . . . . . . . . . . . . . . Known Exits Taken 4 | . . 1 . . . . . 1 . 1 . . 1 . Unknown Exits Taken 8 | 1 1 . 1 1 1 1 1 . . . . 1 . . Scrap Searched 2 | . . . . . . . . . . . . . . 2 Spaces Dug . | . . . . . . . . . . . . . . . Terrain Destroyed . | . . . . . . . . . . . . . . . Melee . | . . . . . . . . . . . . . . . Projectile . | . . . . . . . . . . . . . . . AOE . | . . . . . . . . . . . . . . . Terrain Rammed . | . . . . . . . . . . . . . . . Walls Destroyed . | . . . . . . . . . . . . . . . Machines Disabled . | . . . . . . . . . . . . . . . Actions | -11 -10 -9 -9 -9 -8 -8 -7 -6 -6 -6 -6 -5 -4 -4 --------- Run | Yrd Mat Mat Min Exi Min Mat Fac Fac Gar Fac DSF Fac Fac Upp Total 3593 | 26 136 82 183 214 75 200 147 174 387 79 58 657 893 282 Wait 358 | . . . 40 . 1 . . . 68 . . 30 144 75 Move 3129 | 26 136 82 143 214 74 198 147 173 270 79 35 604 745 203 Hop 2 | . . . . . . . . . . . . . . 2 Pick Up . | . . . . . . . . . . . . . . . Fast Attach . | . . . . . . . . . . . . . . . Attach . | . . . . . . . . . . . . . . . Detach . | . . . . . . . . . . . . . . . Swap . | . . . . . . . . . . . . . . . Drop . | . . . . . . . . . . . . . . . Fire 21 | . . . . . . 1 . . . . . 18 . 2 Melee 1 | . . . . . . . . . . . 1 . . . Ram 4 | . . . . . . 1 . . . . . 2 1 . Kick . | . . . . . . . . . . . . . . . Crush . | . . . . . . . . . . . . . . . Escape Stasis 14 | . . . . . . . . . . . 14 . . . Rewire 54 | . . . . . . . . 1 49 . . 3 1 . Trap 10 | . . . . . . . . . . . 8 . 2 . Miscellaneous . | . . . . . . . . . . . . . . . Route ------- -11/Scrapyard -10/Materials (discovered 3 exits: *Mat / Min x2) -9/Materials -9/Mines -9/Exiles -8/Mines -8/Materials -7/Factory (discovered 2 exits: *Fac / [*Low]) -6/Factory -6/Garrison -6/Factory -6/DSF -5/Factory (discovered 5 exits: *Fac / *Upp x2 / Ext x2) -4/Factory (discovered 2 exits: *Upp x2) -4/Upper Caves History --------- Turn | Location | Event 6 | -11/Scrapyard | Discovered new exit (range 15) 17 | -11/Scrapyard | Entered Materials 86 | -10/Materials | Discovered new exit (range 14) 95 | -10/Materials | Identified exit to Mines 114 | -10/Materials | Entered another Materials area 148 | -9/Materials | Identified exit to Mines 160 | -9/Materials | Entered Mines 161 | -9/Mines | Assembled infested the area 232 | -9/Mines | Met 8R-AWN 234 | -9/Mines | Discovered new exit (range 5) 280 | -9/Mines | Entered Exiles 280 | -9/Exiles | Accompanied by 1 ally 293 | -9/Exiles | Welcomed by 8R-AWN 301 | -9/Exiles | Met EX-HEX 310 | -9/Exiles | Led the pair of lost Derelicts to a safe place 315 | -9/Exiles | Met EX-BIN 321 | -9/Exiles | Aligned with FarCom system 322 | -9/Exiles | Given EX-Vault access code 333 | -9/Exiles | Opened EX-Vault 347 | -9/Exiles | Warned to stay clear of 0b10 Research branches 369 | -9/Exiles | Learned about 8R-AWN's background 382 | -9/Exiles | Discovered new exit (range 14) 388 | -9/Exiles | Entered Mines 440 | -8/Mines | Discovered new exit (range 6) 448 | -8/Mines | Entered Materials 582 | -8/Materials | Discovered new exit (range 11) 588 | -8/Materials | Entered Factory 652 | -7/Factory | Discovered new exit (range 8) 674 | -7/Factory | Discovered new exit (range 14) 684 | -7/Factory | Entered another Factory area 735 | -6/Factory | Spotted B-75 Beast 800 | -6/Factory | Identified exit to Garrison 800 | -6/Factory | Entered Garrison 810 | -6/Garrison | Triggered checkpoint 944 | -6/Garrison | Triggered checkpoint 962 | -6/Garrison | Triggered checkpoint 976 | -6/Garrison | Lost 3 allies 1050 | -6/Garrison | Discovered new exit (range 15) 1052 | -6/Garrison | Lost 3 allies 1055 | -6/Garrison | Entered Factory 1089 | -6/Factory | Identified exit to DSF 1090 | -6/Factory | Entered DSF 1128 | -6/DSF | Discovered new exit (range 8) 1133 | -6/DSF | Entered Factory 1321 | -5/Factory | Identified exit to Upper Caves 1321 | -5/Factory | Identified exit to Extension 1453 | -5/Factory | Lost 4 parts (1p2n1w) 1463 | -5/Factory | Core integrity fell below 50% 1580 | -5/Factory | Core integrity fell below 20% 1596 | -5/Factory | Discovered new exit (range 9) 1607 | -5/Factory | Entered another Factory area 1618 | -4/Factory | Assembled infested ambush trap array 1765 | -4/Factory | Core integrity fell below 50% 1838 | -4/Factory | Identified exit to Upper Caves 1923 | -4/Factory | Spotted B-86 Titan 2149 | -4/Factory | Core integrity fell below 20% 2174 | -4/Factory | Lost 3 parts (1p1n1w) 2177 | -4/Factory | Entered Upper Caves 2321 | -4/Upper Caves | Attracted the attention of an 0b10 checkpoint 2325 | -4/Upper Caves | Destroyed by S-27 Virus with Autogun Last Messages --------------- reinforcements to Terminal F012. LOCATION=UPPER CAVES GOAL=ESCAPE 02185_ Released control of O-16 Technician. 02185_ Took control of S-27 Virus. 02186_ EI-JU1(r) destroyed. 02241_ WI9ONCONT8<4FL2&IRD